bitfinex/quotes_SOLUSD_20260103
["timestamp","ask_amount","ask_price","bid_price","bid_amount"]
[1767460084281,0.69626549,131.69,131.66,9.43171658]
[1767460087995,0.69626549,131.69,131.66,0.02212344]
[1767460088167,0.69626549,131.69,131.66,1.83669018]
[1767460089790,0.69626549,131.69,131.66,8.68455763]
[1767460089969,0.69626549,131.69,131.66,9.39465599]
[1767460091167,0.69626549,131.69,131.67,0.71009836]
[1767460091886,0.69626549,131.69,131.66,9.39465599]
[1767460094293,0.69626549,131.69,131.67,8.3047426]
[1767460094889,0.69626549,131.69,131.67,7.59464424]
[1767460112208,0.69626549,131.69,131.66,10.1197646]
[1767460114712,0.69626549,131.69,131.66,8.30519786]
[1767460115006,0.69626549,131.69,131.66,10.1197646]
[1767460120517,0.69626549,131.69,131.66,11.13953882]
[1767460122614,0.69626549,131.69,131.66,7.5950995]
[1767460123317,0.69626549,131.69,131.65,3.55016007]
[1767460123318,0.69626549,131.69,131.65,8.31161947]
[1767460124117,0.69135782,131.68,131.64,8.31206339]
[1767460124318,0.69135782,131.68,131.64,11.14640435]
[1767460125098,0.69135782,131.67,131.64,11.14640435]
[1767460130624,0.69135782,131.67,131.64,8.31206339]
[1767460132533,0.69135782,131.67,131.64,11.14640435]
[1767460144337,0.69135782,131.67,131.65,11.13247431]
[1767460144533,0.71430643,131.68,131.65,11.13247431]
[1767460147645,0.71430643,131.68,131.65,8.29813335]
[1767460147843,0.71430643,131.68,131.65,11.13247431]
[1767460150746,0.71430643,131.68,131.65,8.29813335]
[1767460151041,0.71430643,131.68,131.65,10.4301318]
[1767460157851,0.71430643,131.68,131.65,7.59579084]
[1767460158055,0.71430643,131.68,131.65,10.4301318]
[1767460158352,0.71430643,131.68,131.65,2.83434096]
[1767460159550,0.71430643,131.68,131.65,10.4301318]
[1767460165553,0.71430643,131.68,131.65,11.13247431]
[1767460167372,3.54864739,131.68,131.64,0.70234251]
[1767460167536,0.71430643,131.65,131.62,0.70234251]
[1767460167748,0.71430643,131.65,131.62,3.53668347]
[1767460168557,0.71430643,131.65,131.62,0.70234251]
[1767460168756,0.71430643,131.65,131.61,11.13466695]
[1767460169568,0.71430643,131.64,131.61,11.13466695]
[1767460169770,0.66304269,131.65,131.63,3.50588453]
[1767460169959,13.86,131.66,131.63,3.50588453]
[1767460170162,24.28979117,131.66,131.62,0.67154357]
[1767460170565,21.45545021,131.66,131.62,2.83434096]
[1767460171965,0.72103041,131.65,131.62,2.83434096]
[1767460173159,0.72103041,131.65,131.61,8.28199407]
[1767460173362,0.72103041,131.65,131.62,2.83434096]
[1767460178082,8.31693436,131.65,131.62,2.83434096]
[1767460178463,0.72103041,131.64,131.62,2.83434096]
[1767460179977,0.72103041,131.64,131.61,11.11633503]
[1767460180181,14.58103041,131.67,131.64,0.68401059]
[1767460180377,14.58103041,131.67,131.64,3.51835155]
[1767460180881,0.72103041,131.66,131.64,3.51835155]
[1767460181065,0.72103041,131.66,131.64,2.83434096]
[1767460181884,0.72103041,131.66,131.63,8.28074038]
[1767460182185,0.72103041,131.66,131.64,2.83434096]
[1767460182562,0.72103041,131.66,131.64,1.81467639]
[1767460188984,0.72103041,131.66,131.63,10.09541677]
[1767460190282,0.72103041,131.66,131.64,7.59645423]
[1767460201906,0.66884054,131.68,131.65,0.69203812]
[1767460202107,14.52884054,131.67,131.64,9.41113062]
[1767460202914,14.52884054,131.67,131.64,7.59645423]
[1767460210516,14.52884054,131.67,131.63,0.08508534]
[1767460211715,0.66884054,131.66,131.63,7.68213768]
[1767460211895,0.63884055,131.66,131.63,7.68213768]
[1767460218826,0.63884055,131.66,131.62,7.712529]
[1767460219127,0.63884055,131.66,131.63,0.11508533]
[1767460219925,0.63884055,131.66,131.63,7.7120248]
[1767460224510,2.45351694,131.66,131.63,7.7120248]
[1767460225131,0.63884055,131.66,131.63,7.7120248]
[1767460231634,0.63884055,131.66,131.62,7.71271486]
[1767460234739,0.63884055,131.66,131.63,7.71179021]
[1767460236040,0.63884055,131.66,131.62,7.71271486]
[1767460237445,0.63884055,131.66,131.63,7.711825]
[1767460237622,0.63884055,131.66,131.63,7.59673967]
[1767460240737,0.63884055,131.66,131.63,7.711825]
[1767460240947,0.63884055,131.66,131.63,0.11508533]
[1767460241943,0.63884055,131.66,131.63,7.71176473]
[1767460248043,0.63884055,131.66,131.63,7.5966794]
[1767460248351,22.1500842,131.67,131.64,0.11508533]
[1767460248548,0.69511705,131.68,131.64,7.36609267]
[1767460248743,0.69511705,131.68,131.64,10.2020846]
[1767460249551,0.69511705,131.68,131.65,2.83599193]
[1767460250656,0.69511705,131.68,131.66,7.59532128]
[1767460251853,0.69511705,131.68,131.64,2.83599193]
[1767460254547,0.69511705,131.68,131.65,7.59589821]
[1767460258768,0.69511705,131.68,131.62,26.59170337]
[1767460258942,0.69511705,131.68,131.64,2.83599193]
[1767460260469,0.69511705,131.68,131.65,10.43131736]
[1767460297702,0.69511705,131.68,131.63,18.99133486]
[1767460297868,0.69511705,131.68,131.64,2.83599193]
[1767460299098,0.69511705,131.68,131.65,7.59589821]
[1767460301898,0.69511705,131.68,131.65,2.83599193]
[1767460302195,0.69088209,131.67,131.64,2.83599193]
[1767460302400,0.69088209,131.67,131.62,10.43362146]
[1767460302587,0.69088209,131.66,131.62,10.43362146]
[1767460304592,0.69088209,131.66,131.62,9.41256708]
[1767460309505,0.69088209,131.66,131.63,1.81493755]
[1767460311302,0.6608821,131.65,131.61,20.83992497]
[1767460311501,1.81493755,131.65,131.61,7.59802793]
[1767460311802,1.81493755,131.64,131.6,7.5986054]
[1767460312910,9.41149135,131.64,131.59,26.65744269]
[1767460313483,0.69088209,131.63,131.59,26.65744269]
[1767460314606,0.69088209,131.63,131.59,20.87301859]
[1767460316410,0.69088209,131.63,131.59,28.47238024]
[1767460316720,0.6608821,131.63,131.59,28.47238024]
[1767460320796,0.63088211,131.63,131.59,28.47238024]
[1767460321499,0.63088211,131.63,131.6,1.81493755]
[1767460321895,0.63088211,131.63,131.59,19.05808104]
[1767460321896,7.59626201,131.65,131.62,1.81493755]
[1767460322103,21.45626201,131.65,131.62,1.93493751]
[1767460322300,13.86,131.65,131.62,1.93493751]
[1767460322810,14.51682248,131.65,131.62,1.93493751]
[1767460323305,0.65682248,131.64,131.61,1.93493751]
[1767460323493,0.65682248,131.64,131.61,9.53282925]
[1767460326315,0.65682248,131.64,131.61,9.41282929]
[1767460329721,0.65682248,131.64,131.61,7.59789174]
[1767460333330,0.65682248,131.62,131.58,7.71993916]
[1767460333500,0.62682249,131.62,131.58,7.71993916]
[1767460333822,0.5968225,131.62,131.58,7.71993916]
[1767460334321,0.5968225,131.62,131.59,0.17999994]
[1767460336424,0.5968225,131.62,131.6,7.59878419]
[1767460336825,0.56682251,131.62,131.6,7.59878419]
[1767460338925,0.56682251,131.62,131.59,7.59936165]
[1767460339730,0.56682251,131.62,131.59,7.80936158]
[1767460344535,0.53682252,131.62,131.59,7.80936158]
[1767460352642,9.41256945,131.62,131.58,7.59978001]
[1767460353343,9.41256945,131.62,131.58,7.86977992]
[1767460354526,0.66585749,131.61,131.58,7.86977992]
[1767460354726,1e-08,131.61,131.58,7.86977992]
[1767460362583,1e-08,131.61,131.58,0.26999991]
[1767460362882,1e-08,131.61,131.58,7.86964954]
[1767460371883,14.52585749,131.62,131.59,0.69024895]
[1767460372183,0.66585749,131.61,131.59,0.69024895]
[1767460372389,1e-08,131.61,131.59,0.69024895]
[1767460377392,1e-08,131.61,131.59,8.28914085]
[1767460377577,14.52585749,131.62,131.59,8.28914085]
[1767460381788,13.86,131.62,131.59,8.28914085]
[1767460382096,0.71639745,131.61,131.59,8.28914085]
[1767460382281,1e-08,131.61,131.59,8.28914085]
[1767460382577,13.86,131.62,131.59,8.28914085]
[1767460384284,14.44188769,131.62,131.59,8.28914085]
[1767460390212,13.89786149,131.62,131.59,8.28914085]
[1767460390585,7.59719633,131.63,131.59,8.28914085]
[1767460391206,7.59647523,131.64,131.59,8.28914085]
[1767460398803,26.58766331,131.64,131.58,0.65385114]
[1767460399005,0.64830262,131.6,131.55,2.83789427]
[1767460399202,0.10449303,131.59,131.53,32.86630036]
[1767460399389,0.10449303,131.59,131.55,7.6015822]
[1767460400304,0.64286452,131.58,131.54,7.60223682]
[1767460400495,0.64286452,131.58,131.54,10.44013109]
[1767460400885,0.64286452,131.58,131.55,0.65385114]
[1767460402211,8.25352048,131.59,131.55,8.25549475]
[1767460402508,8.25352048,131.59,131.56,0.65385114]
[1767460416240,0.65385114,131.6,131.57,0.69631421]
[1767460416405,0.65385114,131.6,131.57,8.29682853]
[1767460417243,8.25267217,131.6,131.57,0.69631421]
[1767460418448,0.099,131.59,131.57,0.69631421]
[1767460424654,0.65385114,131.6,131.57,0.69631421]
[1767460428557,8.25267636,131.6,131.57,0.69631421]
[1767460429128,10.06946672,131.6,131.57,0.69631421]
[1767460429545,0.099,131.59,131.57,0.69631421]
[1767460429749,0.099,131.59,131.56,8.29718193]
[1767460430455,0.099,131.59,131.57,0.69631421]
[1767460431530,0.099,131.59,131.56,8.29728605]
[1767460433254,0.099,131.59,131.57,0.69631421]
[1767460440243,9.41499718,131.61,131.57,0.69631421]
[1767460440443,0.65385114,131.6,131.57,0.69631421]
[1767460441576,8.25277643,131.6,131.57,0.69631421]
[1767460442355,8.25277643,131.6,131.56,7.60097184]
[1767460444361,8.25277643,131.6,131.57,0.65483339]
[1767460450651,10.06956679,131.6,131.57,0.65483339]
[1767460452272,0.65385114,131.6,131.58,0.65483339]
[1767460452477,8.30682311,131.62,131.58,1.81679036]
[1767460452679,0.7089843,131.62,131.59,1.81679036]
[1767460452855,0.7089843,131.62,131.59,9.41608469]
[1767460454366,0.7089843,131.62,131.6,0.65483339]
[1767460459882,0.7089843,131.62,131.6,0.59483343]
[1767460464480,8.30557549,131.64,131.6,8.19356601]
[1767460464674,0.7089843,131.63,131.59,8.2539657]
[1767460464881,0.7089843,131.62,131.59,8.2539657]
[1767460465078,0.7089843,131.62,131.59,7.59913231]
[1767460465276,0.7089843,131.62,131.59,8.2539657]
[1767460467385,0.7089843,131.61,131.58,0.65483339]
[1767460467586,0.7089843,131.59,131.57,0.65483339]
[1767460468290,0.7089843,131.59,131.56,8.25569177]
[1767460474693,0.7089843,131.59,131.57,0.71120411]
[1767460480095,0.7089843,131.59,131.55,7.60167236]
[1767460480276,0.7089843,131.59,131.56,0.71120411]
[1767460481892,0.7089843,131.59,131.55,7.60167236]
[1767460481893,0.66434309,131.58,131.55,8.31287647]
[1767460492898,0.66434309,131.59,131.55,11.15203735]
[1767460497615,0.66434309,131.59,131.55,8.31287647]
[1767460500414,0.66434309,131.59,131.56,8.26325266]
[1767460502618,0.66434309,131.59,131.56,7.60067469]
[1767460503117,0.71398527,131.58,131.56,7.60067469]
[1767460508126,0.71398527,131.58,131.55,8.26425033]
[1767460512331,10.43816507,131.6,131.54,35.70406344]
[1767460512332,0.71398527,131.59,131.56,8.26356593]
[1767460513407,0.71398527,131.59,131.56,7.60098796]
[1767460514931,0.71398527,131.6,131.57,0.66257797]
[1767460515134,0.71398527,131.61,131.58,3.50173885]
[1767460515329,0.71398527,131.61,131.58,2.83916088]
[1767460515509,0.71398527,131.61,131.58,3.50173885]
[1767460516859,0.71398527,131.61,131.58,11.10114453]
[1767460517354,0.71398527,131.61,131.58,8.26198365]
[1767460519558,0.71398527,131.61,131.58,11.10114453]
[1767460525554,0.71398527,131.62,131.59,3.50173885]
[1767460525752,0.71398527,131.62,131.58,7.59940568]
[1767460526049,0.71398527,131.62,131.59,2.83916088]
[1767460527753,0.71398527,131.62,131.59,10.43849596]
[1767460532555,0.71398527,131.62,131.59,7.59933508]
[1767460534670,0.71398527,131.62,131.59,10.61091929]
[1767460534874,2.83916088,131.65,131.6,2.83916088]
[1767460535078,2.83916088,131.65,131.6,3.56221219]
[1767460536075,10.43524713,131.65,131.61,7.59820682]
[1767460536375,10.43524713,131.65,131.61,0.72305131]
[1767460536878,0.70936519,131.64,131.61,0.72305131]
[1767460538179,0.70936519,131.65,131.62,0.72305131]
[1767460540876,0.70936519,131.65,131.62,8.3206788]
[1767460545977,0.70936519,131.64,131.61,8.32104635]
[1767460546181,0.70936519,131.64,131.61,7.59799504]
[1767460550587,0.70936519,131.64,131.61,8.32104635]
[1767460570805,0.70936519,131.64,131.61,7.59799504]
[1767460570990,0.70936519,131.64,131.61,8.26390938]
[1767460582133,112.76121972,131.66,131.62,0.66591434]
[1767460582335,0.72179712,131.65,131.62,0.6059144]
[1767460583145,0.72179712,131.65,131.62,8.20331141]
[1767460585136,0.72179712,131.65,131.62,8.14331142]
[1767460585936,0.72179712,131.65,131.62,7.59739701]
[1767460588113,0.72179712,131.65,131.62,8.26331135]
[1767460589141,0.72179712,131.65,131.63,0.66591434]
[1767460589436,0.72179712,131.65,131.62,7.59739701]
[1767460591238,0.72179712,131.65,131.62,7.69789134]
[1767460598523,0.72179712,131.65,131.62,7.59739701]
[1767460606723,103.35,131.66,131.63,0.10049433]
[1767460606918,104.06524204,131.66,131.63,0.04049434]
[1767460607646,104.06524204,131.66,131.63,1.85606059]
[1767460611241,103.35,131.66,131.64,0.04049434]
[1767460611447,0.71524204,131.65,131.63,7.5966]
[1767460611660,0.71524204,131.65,131.62,7.59741106]
[1767460611827,0.71524204,131.64,131.62,7.59741106]
[1767460612725,0.71524204,131.64,131.61,7.59820682]
[1767460624064,0.71524204,131.64,131.61,10.43507236]
[1767460625346,0.71524204,131.64,131.61,7.59820682]
[1767460630080,0.66259398,131.63,131.6,10.43544802]
[1767460631272,0.66259398,131.63,131.6,7.59858248]
[1767460631460,0.66259398,131.63,131.6,10.43544802]
[1767460633275,0.66259398,131.63,131.59,10.43622719]
[1767460633771,0.66259398,131.63,131.6,2.83686554]
[1767460634261,0.66259398,131.63,131.6,10.43559953]
[1767460638380,0.66259398,131.63,131.59,7.59936165]
[1767460638558,0.66259398,131.63,131.6,2.83686554]
[1767460638754,0.66259398,131.63,131.59,10.43622719]
[1767460639062,0.66259398,131.63,131.6,2.83686554]
[1767460639877,0.66259398,131.63,131.6,10.4355063]
[1767460643773,0.66259398,131.63,131.58,32.85927561]
[1767460643980,0.66259398,131.63,131.6,2.83686554]
[1767460646486,0.66259398,131.63,131.6,10.43526381]
[1767460651385,0.66259398,131.63,131.59,10.43622719]
[1767460651582,0.66259398,131.63,131.59,7.59936165]
[1767460652086,0.66259398,131.63,131.59,10.43622719]
[1767460660987,7.59589821,131.65,131.59,11.09882117]
[1767460661490,7.59589821,131.65,131.59,10.43622719]
[1767460662089,7.59589821,131.65,131.59,11.09882117]
[1767460662593,7.59589821,131.65,131.6,0.66259398]
[1767460663096,0.65764612,131.64,131.59,7.59936165]
[1767460663281,0.65764612,131.63,131.59,7.59936165]
[1767460663473,0.65764612,131.63,131.59,6.87436165]
[1767460663672,0.65764612,131.63,131.58,16.69686554]
[1767460663673,0.65764612,131.63,131.58,8.26516959]
[1767460663886,0.2274623,131.62,131.58,7.54016959]
[1767460664081,0.2274623,131.62,131.58,6.87474611]
[1767460664286,0.2274623,131.62,131.58,10.37703513]
[1767460664486,0.2274623,131.62,131.58,9.71161165]
[1767460664789,0.65334428,131.61,131.58,9.71161165]
[1767460665295,0.65334428,131.61,131.58,10.37703513]
[1767460665984,0.65334428,131.61,131.58,9.71161165]
[1767460666180,0.65334428,131.61,131.58,10.37703513]
[1767460667470,0.65334428,131.61,131.59,0.66542348]
[1767460667673,0.65334428,131.61,131.58,10.37703513]
[1767460670392,8.25171626,131.61,131.58,0.66542348]
[1767460676099,0.65334428,131.61,131.58,0.66542348]
[1767460676286,0.65334428,131.61,131.58,8.26529651]
[1767460682801,0.65334428,131.61,131.58,10.08173088]
[1767460684410,0.65334428,131.61,131.58,8.26529651]
[1767460684598,0.65334428,131.61,131.58,10.08173088]
[1767460686421,0.65334428,131.61,131.58,8.26529651]
[1767460703040,0.65467703,131.62,131.59,0.69438895]
[1767460703231,0.65467703,131.64,131.6,1.81643437]
[1767460703426,0.65467703,131.66,131.62,1.81643437]
[1767460705229,0.65467703,131.66,131.63,8.29144129]
[1767460708640,0.65467703,131.66,131.63,7.59705234]
[1767460709549,0.65467703,131.65,131.62,8.29194186]
[1767460709729,0.65467703,131.65,131.61,10.10864293]
[1767460710044,0.69791135,131.64,131.61,10.10864293]
[1767460710236,0.69791135,131.64,131.61,8.29220856]
[1767460713143,0.6579275,131.63,131.6,10.08669734]
[1767460717956,0.6579275,131.63,131.6,7.59857036]
[1767460718551,0.6579275,131.63,131.6,6.87357036]
[1767460718734,0.6579275,131.63,131.6,6.67470289]
[1767460719256,0.5579275,131.62,131.59,7.49935035]
[1767460722444,0.5579275,131.62,131.59,8.17104296]
[1767460723462,9.87164446,131.63,131.6,0.67169261]
[1767460725666,0.099,131.62,131.59,7.49935035]
[1767460725869,0.099,131.62,131.59,8.17104296]
[1767460726571,0.099,131.62,131.6,0.67169261]
[1767460729267,9.51271696,131.63,131.6,0.67169261]
[1767460733670,7.69628259,131.63,131.6,0.67169261]
[1767460733971,9.51271696,131.63,131.6,0.67169261]
[1767460734475,10.53398085,131.63,131.6,0.67169261]
[1767460736960,7.69628259,131.63,131.6,0.67169261]
[1767460742175,14.3179275,131.64,131.61,0.69079493]
[1767460742380,8.0543533,131.65,131.62,0.69079493]
[1767460745487,7.5964258,131.65,131.62,0.69079493]
[1767460747693,7.6954258,131.65,131.62,0.69079493]
[1767460749263,10.53312406,131.65,131.62,0.69079493]
[1767460749665,7.6954258,131.65,131.62,0.69079493]
[1767460750480,10.53312406,131.65,131.62,0.69079493]
[1767460753872,7.6954258,131.65,131.62,0.69079493]
[1767460759390,10.53312406,131.65,131.62,0.69079493]
[1767460759791,10.53312406,131.65,131.62,0.63079493]
[1767460764099,7.6954258,131.65,131.62,0.63079493]
[1767460764996,7.6954258,131.65,131.62,0.57079493]
[1767460773296,7.5964258,131.65,131.62,0.57079493]
[1767460773505,125.38349069,131.66,131.63,0.67207168]
[1767460773800,125.38349069,131.66,131.62,7.59754973]
[1767460774402,125.38349069,131.66,131.62,10.43524799]
[1767460774700,0.70405362,131.65,131.62,10.43524799]
[1767460775596,0.70405362,131.65,131.62,11.10731967]
[1767460778893,0.70405362,131.65,131.62,8.26962141]
[1767460783599,8.29995732,131.65,131.62,8.26962141]
[1767460788708,8.29995732,131.65,131.62,0.67207168]
[1767460805608,0.6394861,131.64,131.61,8.28572339]
[1767460806030,0.6394861,131.64,131.62,0.68774531]
[1767460806330,8.28687252,131.65,131.62,0.68774531]
[1767460809757,10.10225396,131.65,131.62,0.68774531]
[1767460814033,8.28687252,131.65,131.62,0.68774531]
[1767460815433,0.65244005,131.64,131.62,0.68774531]
[1767460815733,8.28687252,131.65,131.62,0.68774531]
[1767460829769,0.65244005,131.64,131.62,0.68774531]
[1767460829955,7.5959037,131.65,131.62,0.68774531]
[1767460830253,8.28017646,131.65,131.62,0.68774531]
[1767460844488,0.65906915,131.64,131.62,0.68774531]
[1767460844895,8.28414541,131.65,131.62,0.68774531]
[1767460848607,0.65513989,131.64,131.62,0.68774531]
[1767460858799,0.65513989,131.64,131.62,0.68289374]
[1767460859201,0.65513989,131.64,131.61,7.59797808]
[1767460860312,0.65513989,131.64,131.59,26.59709551]
[1767460861219,0.65513989,131.64,131.6,0.71373891]
[1767460862816,0.65513989,131.64,131.6,8.31198602]
[1767460862998,0.65513989,131.64,131.61,0.71373891]
[1767460863714,7.5959037,131.65,131.61,0.71373891]
[1767460863907,8.25602656,131.65,131.61,0.71373891]
[1767460866623,8.25602656,131.65,131.61,8.31191608]
[1767460868124,8.25602656,131.65,131.62,0.71373891]
[1767460868305,8.25602656,131.65,131.62,0.65373891]
[1767460895046,0.70267921,131.64,131.62,0.65373891]
[1767460895532,0.70267921,131.64,131.62,8.25114831]
[1767460910966,0.70267921,131.64,131.61,8.2522625]
[1767460911169,0.70267921,131.64,131.62,0.65405568]
[1767460917172,18.99773386,131.67,131.64,0.18210708]
[1767460917371,3.96093716,131.68,131.66,0.18210708]
[1767460917573,0.70267921,131.69,131.66,0.12210708]
[1767460917882,0.70267921,131.69,131.66,2.95898004]
[1767460918249,0.70267921,131.69,131.64,7.59720874]
[1767460918457,0.70267921,131.69,131.66,1.81407455]
[1767460920776,8.31693442,131.71,131.66,9.40931132]
[1767460921073,0.72437534,131.71,131.68,1.7e-06]
[1767460921368,0.72437534,131.71,131.67,1.7e-06]
[1767460921667,0.72437534,131.71,131.68,1.7e-06]
[1767460921890,0.72437534,131.72,131.69,1.81407455]
[1767460922876,0.72437534,131.72,131.69,9.40732288]
[1767460925777,8.31517139,131.74,131.7,1.81407455]
[1767460926080,22.17471758,131.75,131.7,1.81407455]
[1767460926373,0.72437534,131.74,131.7,1.81407455]
[1767460926773,0.72437534,131.75,131.69,40.43722585]
[1767460926971,0.72437534,131.73,131.69,9.40732288]
[1767460929867,0.72437534,131.73,131.69,7.59324833]
[1767460931167,0.72437534,131.72,131.69,7.59324833]
[1767460932882,2.53844989,131.7,131.67,22.77299123]
[1767460933059,0.72437534,131.69,131.64,15.67407455]
[1767460934371,0.72437534,131.68,131.64,15.67407455]
[1767460935086,0.72437534,131.68,131.65,7.59589821]
[1767460939484,0.72437534,131.69,131.65,7.59589821]
[1767460939985,2.53844989,131.69,131.65,7.59589821]
[1767460944402,0.72437534,131.69,131.65,7.59589821]
[1767460948886,0.69437532,131.69,131.65,7.62589823]
[1767460955114,0.69437532,131.69,131.66,0.03000002]
[1767460955912,0.66771305,131.7,131.66,0.03000002]
[1767460956207,9.40658688,131.71,131.68,0.03000002]
[1767460956208,0.66771305,131.71,131.68,0.03000002]
[1767460957906,0.66771305,131.71,131.68,7.62416769]
[1767460958586,0.66771305,131.71,131.68,9.43824224]
[1767460958991,0.66771305,131.71,131.68,7.62416769]
[1767460962310,1.81407455,131.73,131.69,0.69771306]
[1767460962693,1.81407455,131.73,131.69,8.29091323]
[1767460963012,9.40549778,131.73,131.69,8.29091323]
[1767460963397,7.59142323,131.73,131.69,8.29091323]
[1767460963596,9.40549778,131.73,131.69,8.29091323]
[1767460964313,0.66771305,131.72,131.69,8.29091323]
[1767460968020,0.66771305,131.72,131.68,27.27729992]
[1767460968317,0.66771305,131.72,131.69,0.69771306]
[1767460970918,0.66771305,131.72,131.7,7.59301442]
[1767460973220,0.66771305,131.72,131.7,0.69771306]
[1767460973424,0.66771305,131.73,131.7,0.69771306]
[1767460974722,0.66771305,131.73,131.7,8.29069113]
[1767460977421,0.66771305,131.73,131.69,0.69771306]
[1767460980529,0.66771305,131.73,131.7,8.2626212]
[1767460993649,8.25901134,131.73,131.7,8.2626212]
[1767460998664,0.71545889,131.72,131.7,7.59301442]
[1767460999965,0.71545889,131.72,131.7,0.66960678]
[1767461005684,0.71545889,131.72,131.7,8.26252828]
[1767461008193,0.71545889,131.73,131.7,8.26252828]
[1767461024083,8.30154818,131.74,131.71,0.69771306]
[1767461024280,7.59095355,131.74,131.71,0.69771306]
[1767461024466,7.59095355,131.74,131.7,7.5929215]
[1767461024467,0.71059463,131.73,131.7,8.29063456]
[1767461040370,0.68324025,131.75,131.71,0.69569809]
[1767461040575,0.68324025,131.76,131.73,3.52894048]
[1767461040786,0.68324025,131.76,131.73,3.46894053]
[1767461040985,0.68324025,131.76,131.73,2.83324239]
[1767461041177,0.68324025,131.76,131.74,7.59070897]
[1767461041495,0.68324025,131.77,131.74,7.59070897]
[1767461042294,0.68324025,131.77,131.74,2.83324239]
[1767461042597,0.68324025,131.77,131.74,1.81185032]
[1767461042894,0.68324025,131.77,131.74,2.44956343]
[1767461043602,0.68324025,131.77,131.74,10.0401414]
[1767461045299,0.68324025,131.77,131.75,0.63771311]
[1767461045677,0.68324025,131.78,131.75,8.22753081]
[1767461048204,0.68324025,131.78,131.75,8.16753086]
[1767461050004,0.68324025,131.78,131.75,0.57771316]
[1767461050210,8.27171566,131.78,131.75,0.57771316]
[1767461056614,0.68324025,131.77,131.74,9.98004509]
[1767461057912,10.08315823,131.79,131.75,8.16782273]
[1767461058415,9.39991798,131.79,131.75,8.16782273]
[1767461058716,0.68324025,131.78,131.75,8.16782273]
[1767461059012,8.27130791,131.79,131.76,0.57771316]
[1767461059207,8.27130791,131.79,131.76,0.51771317]
[1767461059794,0.68324025,131.81,131.77,1.81185032]
[1767461060314,0.68324025,131.81,131.76,23.24120974]
[1767461060910,0.68324025,131.81,131.76,15.65185032]
[1767461061086,0.68324025,131.81,131.77,0.51771317]
[1767461062213,0.68324025,131.81,131.78,0.51771317]
[1767461062509,0.68324025,131.81,131.78,8.10599017]
[1767461063099,8.26954089,131.82,131.79,0.51771317]
[1767461066589,0.68324025,131.8,131.77,8.10669396]
[1767461067218,0.68324025,131.8,131.78,0.51771317]
[1767461067404,8.27008035,131.81,131.78,0.51771317]
[1767461070325,0.71587486,131.8,131.77,8.10669396]
[1767461070508,8.27524369,131.81,131.78,0.51771317]
[1767461072527,0.68840359,131.8,131.78,7.58838979]
[1767461072813,7.5868401,131.81,131.78,8.10610296]
[1767461073120,0.68840359,131.81,131.78,8.10610296]
[1767461073819,0.68840359,131.81,131.79,0.51771317]
[1767461074318,8.27471899,131.82,131.79,0.51771317]
[1767461079930,8.27471899,131.82,131.79,8.10553692]
[1767461082131,0.68840359,131.82,131.79,8.10553692]
[1767461082321,0.68840359,131.83,131.8,2.32956349]
[1767461082519,0.68840359,131.84,131.81,0.51771317]
[1767461083929,0.68840359,131.84,131.81,8.10413078]
[1767461088038,0.68840359,131.84,131.81,8.04413079]
[1767461096259,0.68840359,131.84,131.81,7.9841308]
[1767461101649,0.65658026,131.82,131.8,7.58725341]
[1767461102254,0.65658026,131.82,131.79,7.98534271]
[1767461103136,0.65658026,131.81,131.79,7.58762952]
[1767461103655,0.65658026,131.81,131.79,7.98534271]
[1767461104256,0.65658026,131.8,131.76,0.39771319]
[1767461104464,0.65658026,131.8,131.77,0.39771319]
[1767461104930,0.65658026,131.79,131.76,7.98706178]
[1767461105127,3.48586222,131.79,131.76,7.98706178]
[1767461106243,3.45586222,131.79,131.76,7.98706178]
[1767461109866,0.62658026,131.79,131.76,7.98706178]
[1767461111660,0.59658026,131.79,131.76,7.98706178]
[1767461112063,7.58730654,131.8,131.77,0.45771319]
[1767461112256,10.41575517,131.82,131.78,0.45771319]
[1767461113361,10.41575517,131.82,131.78,8.04577225]
[1767461113776,0.65658026,131.81,131.78,8.04577225]
[1767461130386,3.48586222,131.81,131.78,8.04577225]
[1767461133278,0.65658026,131.81,131.78,8.04577225]
[1767461137103,0.68222253,131.8,131.78,7.58805906]
[1767461137402,0.68222253,131.79,131.76,8.04723441]
[1767461139600,8.26903912,131.81,131.78,0.45771319]
[1767461142592,8.26903912,131.81,131.78,8.046113]
[1767461144180,0.68222253,131.81,131.78,8.046113]
[1767461147809,0.68222253,131.8,131.77,8.04653438]
[1767461161317,0.68222253,131.8,131.77,10.87581634]
[1767461161911,0.68222253,131.8,131.77,8.04653438]
[1767461162111,0.68222253,131.8,131.77,10.87581634]
[1767461162525,0.68222253,131.8,131.77,8.04653438]
[1767461168612,0.68222253,131.8,131.77,9.85755713]
[1767461169737,0.68222253,131.8,131.77,8.04653438]
[1767461194753,1.81102275,131.81,131.78,0.45771319]
[1767461195767,0.70116803,131.81,131.78,8.04596965]
[1767461195966,10.09853672,131.82,131.79,0.45771319]
[1767461196140,0.70116803,131.81,131.78,7.58825646]
[1767461196345,10.09853672,131.82,131.79,0.45771319]
[1767461196551,0.70116803,131.81,131.78,8.04596965]
[1767461196752,10.09853672,131.82,131.79,0.45771319]
[1767461197444,0.70116803,131.81,131.78,0.45771319]
[1767461197771,10.09853672,131.82,131.78,0.45771319]
[1767461198275,0.70116803,131.81,131.78,0.45771319]